Cogmind - Beta 16 @@@ ROGUE MODE // 2026.01.12 @ 16:59:06 Player: phosphophyllite Result: Destroyed by G-47 Trooper with Particle Gun Performance ------------- Evolutions (0) 0 Regions Visited (2) 400 Robots Destroyed (16) 80 Value Destroyed (470) 470 Prototype IDs (2) 40 Alien Tech Used (0) 0 Bonus (0) 0 TOTAL SCORE: 990 Bonus ------- None Cogmind --------- Core Integrity 0/250 Matter 245/300 Energy 100/160 System Corruption 1% Temperature Warning (342) Movement Flying (107) Ox1 Location -10/Mines Parts ------- > --- POWER (1) -------- Light Nuclear Core > --- PROPULSION (2) --- Improved Flight Unit Improved Flight Unit > --- UTILITY (2) ------ Improved Heat Sink Core Shielding > --- WEAPON (2) ------- Particle Gun Particle Gun > --- INVENTORY (5) ---- Improved Flight Unit Improved Flight Unit Small Storage Unit Peak State ------------ > --- POWER ------------ Light Nuclear Core > --- PROPULSION ------- Improved Flight Unit Improved Flight Unit > --- UTILITY ---------- Improved Heat Sink Core Shielding > --- WEAPON ----------- Particle Gun Particle Gun > --- INVENTORY -------- Improved Flight Unit Improved Flight Unit Small Storage Unit Particle Gun [Rating: 17] Favorites ----------- Power Light Ion Engine Engine Light Ion Engine Power Core Light Nuclear Core Propulsion Aluminum Leg Leg Aluminum Leg Flight Unit Improved Flight Unit Utility Small Storage Unit Device Improved Heat Sink Storage Small Storage Unit Protection Core Shielding Weapon Particle Gun Energy Gun Particle Gun Ballistic Gun Shotgun Ballistic Cannon Light Cannon Build | -11 -10 -10 ------- Run | Yrd Mat Min Slots Evolved . | . . . Power . | . . . Propulsion . | . . . Utility . | . . . Weapon . | . . . Parts Attached 22 | 7 11 4 Power 4 | 1 2 1 Engine 3 | 1 2 . Core 1 | . . 1 Reactor . | . . . Propulsion 4 | 2 2 . Treads . | . . . Leg 2 | 2 . . Wheel . | . . . Hover . | . . . Flight 2 | . 2 . Utility 3 | 1 1 1 Device 1 | . . 1 Storage 1 | 1 . . Processor . | . . . Hackware . | . . . Protection 1 | . 1 . Artifact . | . . . Weapon 11 | 3 6 2 Energy Gun 7 | 2 3 2 Energy Cannon . | . . . Ballistic Gun 3 | 1 2 . Ballistic Cannon 1 | . 1 . Launcher . | . . . Special Weapon . | . . . Impact Weapon . | . . . Slashing Weapon . | . . . Piercing Weapon . | . . . Special Melee Weapon . | . . . Unidentified Prototypes . | . . . Parts Lost 3 | . 2 1 Power 2 | . 2 . Propulsion . | . . . Utility . | . . . Weapon 1 | . . 1 Highest Loss Streak 1 | . 1 1 To Critical Strikes . | . . . Average Backups 6 | 3 7 5 Power . | . . . Propulsion 2 | 1 3 2 Utility 1 | . 1 1 Weapon 1 | . 1 1 Tool/Special . | . . . Unused Backups 9 | . 6 3 Power . | . . . Propulsion 4 | . 2 2 Utility 2 | . 1 1 Weapon 3 | . 3 . Tool/Special . | . . . Average Slot Usage (%) 86 | . 87 83 Engine 10 | . 12 . Leg 22 | . 26 . Flight 5 | . . 28 Device 1 | . . 8 Storage 12 | . 14 5 Protection 6 | . 4 14 Energy Gun 22 | . 22 22 Ballistic Gun 4 | . 4 . Peak Build Rating 17 | 6 12 17 Average Rating 8 | 4 8 14 On Entrance 5 | . 6 11 Avg Prop Armor Cover (%) 10 | . 10 . Naked Turns . | . . . Heaviest Build 17 | 12 17 9 Greatest Support 20 | 20 20 10 Greatest Overweight (x) 1 | . 1 . Average Overweight (x) . | . . . Largest Inventory Capacity 8 | 8 8 8 Average Capacity 7 | 7 8 5 Most Carried 8 | 6 8 8 Average Carried 6 | 3 7 5 Final Capacity 8 | 8 8 5 Final Carried 6 | 6 6 3 Class Distribution -------------------- 100% | Mutant Dominant Class ---------------- Mutant | -10/Materials Mutant | -10/Mines Resources | -11 -10 -10 ----------- Run | Yrd Mat Min Matter Collected 491 | 270 211 10 Remotely . | . . . Salvage Created 711 | 98 393 220 Parts 33 | 4 17 12 Haulers Intercepted 1 | . 1 . Recyclers Shooed . | . . . Parts Field Recycled . | . . . Retrieved Matter . | . . . Parts Self-Destructed . | . . . Prevented . | . . . Parts Restored . | . . . Kills | -11 -10 -10 ------- Run | Yrd Mat Min Combat Hostiles Destroyed 11 | . 6 5 Guns 11 | . 6 5 Classes Destroyed 5 | 2 3 . Worker 1 | 1 . . Hauler 1 | . 1 . Recycler 2 | 1 1 . Watcher 1 | . 1 . Grunt 11 | . 6 5 Best Kill Streak 3 | 1 2 3 Combat Bots Only 3 | . 2 3 Max Kills in Single Turn 1 | 1 1 1 Gunslinging . | . . . Exploded . | . . . Melee . | . . . Uniques/NPCs Destroyed . | . . . Combat | -11 -10 -10 -------- Run | Yrd Mat Min Hostile Shots Fired 71 | . 37 34 Missed 17 | . 7 10 Hits 54 | . 30 24 Projectile 54 | . 30 24 Critical Strikes 2 | . . 2 Actively Blocked 1 | . . 1 Damage Taken 768 | . 433 335 Core 251 | . 127 124 Absorbed by Shields . | . . . Redirected to Shielding 41 | . 15 26 Core Remaining (%) 100 | 100 . . Volleys Fired 46 | 2 28 16 Largest 2 | 2 2 2 Hottest 130 | 90 130 130 Shots Fired 82 | 4 53 25 Gun 82 | 4 53 25 Cannon . | . . . Launcher . | . . . Special . | . . . Kinetic 14 | . 14 . Thermal 66 | 2 39 25 Explosive . | . . . Electromagnetic 2 | 2 . . Robot Hit Streak 10 | 1 10 7 Robot Miss Streak 2 | 1 2 2 Penetration Max . | . . . Secondary Targets 2 | . 1 1 Max Gunslinging Chain 1 | . 1 1 Shots Hit Robots 57 | 2 37 18 Core Hits 28 | 2 17 9 Critical Kills . | . . . Critical Parts Destroyed . | . . . Critical Strikes . | . . . Melee Attacks . | . . . Impact . | . . . Slashing . | . . . Piercing . | . . . Sneak Attacks . | . . . Combat Hostiles . | . . . Follow-up Attacks . | . . . Damage Inflicted 915 | 27 601 287 Guns 915 | 27 601 287 Cannons . | . . . Explosions . | . . . Melee . | . . . Ramming . | . . . Kinetic 211 | . 211 . Thermal 689 | 12 390 287 Explosive . | . . . Electromagnetic 15 | 15 . . Impact . | . . . Slashing . | . . . Piercing . | . . . Highest Corruption 1 | . 1 1 Average Corruption 1 | . 1 1 Corruption Purged . | . . . Corruption Blocked . | . . . Overload Shots . | . . . Overflow Damage . | . . . Projectiles . | . . . Explosions . | . . . Melee . | . . . Knockbacks . | . . . Impact . | . . . Kinetic . | . . . Secondary . | . . . Self-Inflicted Damage . | . . . Shots . | . . . Rammed . | . . . Targets Rammed . | . . . Kicked . | . . . Crushed . | . . . Highest Temperature 609 | 30 609 333 Average Temperature 211 | 18 261 111 Received Heat Transfer 435 | . 225 210 Effects 20 | . 20 . Shutdowns 3 | . 3 . Energy Bleed 2 | . 2 . Interference 5 | . 5 . Matter Decay 1 | . 1 . Short Circuit 2 | . 2 . Damage (minor) 1 | . 1 . Damage (major) 5 | . 5 . Damage (core) 1 | . 1 . Siege Activations . | . . . Martial Activations . | . . . Shielding Activations . | . . . Robots Disrupted . | . . . Combat Hostiles . | . . . Robots Corrupted . | . . . Combat Hostiles . | . . . Parts Fried . | . . . Impact Corruptions . | . . . Robots Melted . | . . . Combat Hostiles . | . . . Parts Melted 2 | . 1 1 Heat Transferred 1702 | 37 962 703 Parts Sabotaged . | . . . Parts Stolen . | . . . Parts Stripped . | . . . Power Chain Reactions . | . . . Alert | -11 -10 -10 ------- Run | Yrd Mat Min Maximum Alert Level . | . . . Low Security (%) 100 | 100 100 100 Level 1 . | . . . Level 2 . | . . . Level 3 . | . . . Level 4 . | . . . Level 5 . | . . . High Security . | . . . Max Security . | . . . Peak Influence 102 | 5 70 102 Initial 22 | . 3 22 Average 18 | 1 15 62 Influence Increases 305 | 10 175 120 Destroy 0b10 Robot/C 220 | . 120 100 Destroy 0b10 Robot/NC 25 | 10 15 . Destroy Leader 54 | . 34 20 Successful Hack 6 | . 6 . Influence Decreases 203 | 5 122 76 Entered New Map 38 | . 2 36 Time Decay 145 | 5 110 30 Lost Part 20 | . 10 10 Squads Dispatched 1 | . 1 . Investigation 1 | . 1 . Extermination . | . . . Reinforcement . | . . . Assault . | . . . Garrison . | . . . Intercept . | . . . Searches Triggered . | . . . Construction Impeded . | . . . Haulers Reinforced . | . . . Active Scanning Responses . | . . . Cargo Convoy Interrupts . | . . . Stealth | -11 -10 -10 --------- Run | Yrd Mat Min Distress Signals 1 | . 1 . Communications Jammed . | . . . Distress Signals . | . . . Times Spotted 15 | . 9 6 Peak Tracking Total 3 | . 3 3 Tactical Retreats . | . . . Traps | -11 -10 -10 ------- Run | Yrd Mat Min Traps Triggered . | . . . Indirectly . | . . . Trap Hack Attempts . | . . . Triggered . | . . . Disarmed . | . . . Reprogrammed . | . . . Reused . | . . . Traps Extracted . | . . . Installed . | . . . Triggered . | . . . Machines | -11 -10 -10 ---------- Run | Yrd Mat Min Machines Disabled . | . . . Max in Single Turn . | . . . Machines Repaired . | . . . Machines Dismantled . | . . . Machines Sabotaged . | . . . Overloaded Fab Kills . | . . . Hacking | -11 -10 -10 --------- Run | Yrd Mat Min Machines Accessed 2 | . 2 . Terminals 2 | . 2 . Fabricators . | . . . Repair Stations . | . . . Recycling Units . | . . . Scanalyzers . | . . . Garrison Access . | . . . Total Hacks 5 | . 5 . Successful 1 | . 1 . Failed 4 | . 4 . Catastrophic 3 | . 3 . Database Lockouts . | . . . Manual 5 | . 5 . Terminals 5 | . 5 . Fabricators . | . . . Repair Stations . | . . . Recycling Units . | . . . Scanalyzers . | . . . Garrison Access . | . . . Terminal Hacks 1 | . 1 . Prototype ID Bank 1 | . 1 . Fabricator Hacks . | . . . Repair Station Hacks . | . . . Recycling Unit Hacks . | . . . Scanalyzer . | . . . Garrison Access Hacks . | . . . Unauthorized Hacks . | . . . Terminals . | . . . Fabricators . | . . . Repair Stations . | . . . Recycling Units . | . . . Scanalyzers . | . . . Garrison Access . | . . . Data Cores Recovered . | . . . Used . | . . . Hacking Detections 2 | . 2 . Full Trace Events 2 | . 2 . Feedback Events 1 | . 1 . Corruption 1 | . 1 . Feedback Blocked . | . . . Robot Schematics Acquired . | . . . Robots Built . | . . . Authchips . | . . . Time . | . . . Total Robot Build Rating . | . . . Part Schematics Acquired . | . . . Parts Built . | . . . Authchips . | . . . Time . | . . . Total Part Build Rating . | . . . Part Studies Acquired . | . . . Parts Repaired . | . . . Time . | . . . Parts Recycled . | . . . Recycled Matter . | . . . Retrieved Matter . | . . . Retrieved Components . | . . . Parts Scanalyzed . | . . . Part Schematics Acquired . | . . . Parts Damaged . | . . . Bothacking | -11 -10 -10 ------------ Run | Yrd Mat Min Used RIF Installer . | . . . Robots Hacked . | . . . Non-combat . | . . . Combat . | . . . Robot Hacks Applied . | . . . Relay Couplers Released . | . . . Fabnet Peak Effective % . | . . . Robots Rewired . | . . . Allies Hacked . | . . . Hacks Repelled . | . . . Allies | -11 -10 -10 -------- Run | Yrd Mat Min Total Allies . | . . . Largest Group . | . . . Highest-Rated Group . | . . . Highest-Rated Ally . | . . . Total Orders . | . . . Ally Attacks . | . . . Total Damage . | . . . Kills . | . . . Allies Corrupted . | . . . Allies Melted . | . . . Intel | -11 -10 -10 ------- Run | Yrd Mat Min Active Infowar (turns) . | . . . Robot Analysis Total . | . . . Derelict Logs Recovered . | . . . Drone Launches . | . . . Drone Recoveries . | . . . Exploration | -11 -10 -10 ------------- Run | Yrd Mat Min Turns Passed 595 | 114 404 77 Spaces Moved 376 | 84 245 47 Core 13 | 13 . . Treads . | . . . Legs 276 | 71 205 . Wheels . | . . . Hover . | . . . Flight 87 | . 40 47 Fastest Speed 37 | 50 37 37 Average Speed 101 | 109 110 37 Slowest Speed 190 | 120 190 37 Overloaded Moves . | . . . Propulsion Burnouts . | . . . Robots Hopped . | . . . Potential Cave-ins . | . . . Cave-ins Triggered . | . . . Exploration Rate (%) 14 | 5 29 10 Regions Visited 2 Branch Regions 1 Pre-discovered Areas . | . . . Known Exits Taken . | . . . Unknown Exits Taken 2 | 1 1 . Scrap Searched . | . . . Spaces Dug . | . . . Terrain Destroyed . | . . . Melee . | . . . Projectile . | . . . AOE . | . . . Terrain Rammed . | . . . Walls Destroyed . | . . . Machines Disabled . | . . . Actions | -11 -10 -10 --------- Run | Yrd Mat Min Total 517 | 101 330 86 Wait 21 | . 15 6 Move 374 | 83 244 47 Hop . | . . . Pick Up 23 | 8 11 4 Fast Attach 11 | 4 6 1 Attach 14 | 3 6 5 Detach 6 | 1 3 2 Swap 1 | . 1 . Drop 21 | . 16 5 Fire 46 | 2 28 16 Melee . | . . . Ram . | . . . Kick . | . . . Crush . | . . . Escape Stasis . | . . . Rewire . | . . . Trap . | . . . Miscellaneous . | . . . Route ------- -11/Scrapyard -10/Materials (discovered 2 exits: [*Mat] / [*Min]) -10/Mines History --------- Turn | Location | Event 5 | -11/Scrapyard | Discovered new exit (range 16) 115 | -11/Scrapyard | Entered Materials 210 | -10/Materials | Discovered new exit (range 15) 340 | -10/Materials | Build established: Mutant 397 | -10/Materials | Discovered new exit (range 13) 449 | -10/Materials | Core integrity fell below 50% 519 | -10/Materials | Entered Mines 580 | -10/Mines | Core integrity fell below 20% 596 | -10/Mines | Destroyed by G-47 Trooper with Particle Gun Last Messages --------------- 00537_ Acquired Imp. Heat Sink. 00540_ Dropped Particle Gun. 00540_ Acquired Particle Gun. 00542_ Dropped Core Shielding. 00542_ Dropped Tractor Beam. 00543_ Dropped Lgt. Ion Engine. 00543_ Dropped Sml. Storage Unit. 00546_ Acquired Core Shielding. 00550_ Acquired Sml. Storage Unit. 00578_ G-34 Mercenary destroyed. 00578_ Switching to secondary target: G-47 Trooper. 00581_ Aluminum Leg melted. 00581_ G-47 Trooper destroyed. 00588_ R-06 Scavenger collects Aluminum Leg. 00590_ Particle Gun destroyed. 00592_ R-06 Scavenger collects Sml. Laser. 00594_ G-34 Mercenary destroyed. 00594_ Critical hit (Burn: +37). 00596_ R-06 Scavenger collects Ion Engine. Map ----- +----------------------------------------------------+ | ???????????# "" #####?????????????????????? | | ???????????# "" #?????????????????????? | | ???????????# % ## #?????????????????????? | | ???????????# * ! ## #?????????????????????? | | ???????????########[##### #?????????????????????? | | ??????????????????# #?????????????????????? | | ??????????????????####### #?????????????????????? | | ????????????????????????# #?????????????????????? | | ????????????????????????# #?????????????????????? | | ????????????????????????# #?????????????????????? | | ????????????????????????# #?????????????????????? | | ????????????????????????# #?????????????????????? | | ????????????????????????# #?????????????????????? | | ????????????????????????# ##????????????????????? | | ????????????????????????# t#????????????????????? | | ????????????????????????# #????????????????????? | | ????????????????????????## #????????????????????? | | ?????????????????????????# #????????????????????? | | ?????????????????????????# #????????????????????? | | ?????????????????????????# #????????????????????? | | ?????????????????????????# #????????????????????? | | ?????????????????????????# #????????????????????? | | ????????????????????????## u#????????????????????? | | ???????????????????????## #????????????????????? | | ??????????????????????## r###??????????????????? | | ??????????????????????# @=% #??????????????????? | | ??????????????????????# %""" #?????????????????? | | ???????????????????? g =""" ??????????????? | | ???????????????????# *% """ ???????????? | | ???????????????????# ### ##########??????????? | | ???????????????????# ??# ##???????????????????? | | ???????????????????#???## #????????????????????? | | ????????????????????????## #????????????????????? | | ?????????????????????????# #????????????????????? | | ?????????????????????????? ?????????????????????? | | ?????????????????????????????????????????????????? | | ?????????????????????????????????????????????????? | | ?????????????????????????????????????????????????? | | ?????????????????????????????????????????????????? | | ?????????????????????????????????????????????????? | | ?????????????????????????????????????????????????? | | ?????????????????????????????????????????????????? | | ?????????????????????????????????????????????????? | | ?????????????????????????????????????????????????? | | ?????????????????????????????????????????????????? | | ?????????????????????????????????????????????????? | | ?????????????????????????????????????????????????? | | ?????????????????????????????????????????????????? | | ?????????????????????????????????????????????????? | | ?????????????????????????????????????????????????? | +----------------------------------------------------+ Best States ------------- Heat Dissipation 39 Energy Generation 14 Energy Capacity 250 Matter Stores 300 Matter Capacity 300 Sight Range 16 Terrain Scan Density 10 Core Shielding 20 Evasion (%) 62 Item Schematics ----------------- None Robot Schematics ------------------ None Fabricated ------------ Nothing Repaired ---------- Nothing Studied --------- None Alien Tech Used ----------------- None Achievements -------------- One Hack Too Far Challenges ------------ None Game ------ Seed UltimateTransmissionModule Manual? 0 Play Time 00:21:51 Cumulative 5.7 hours Start 2026.01.12 @ 16:04:48 End 2026.01.12 @ 16:59:06 Sessions 3 Manual Loads 0 Difficulty Rogue Special Mode None Game No. 7 Rogue 7 Adventurer 0 Explorer 0 Win Type - Total 0 Types 0/0/0/0/0/0/0/0/0/0 Lore% 0 Gallery% 8 Achievement% 7 Wizard Run 0 Options --------- Layout 1 ASCII 0 Keyboard 0 Movement Mouse Keybinds 0 Fullscreen 2 Font 24/Smallcaps Map View 50x35 Zoom Use 0% Tactical HUD 1 Map Filters NONE Filters NONE Steam 1 RUN: 30fd7831-f060-4ac3-890e-b609f9d66ed6